[Event "Early-Titled-Tuesday-Blitz-May-28-2024"]
[Site "Chess.com"]
[Date "2024.05.28"]
[Round "9"]
[White "LileKoridze"]
[Black "Let_it_be_1"]
[Result "0-1"]
[WhiteElo "2439"]
[BlackElo "2595"]
[TimeControl "180+1"]
[EndTime "9:43:13 PDT"]
[Termination "Let_it_be_1 won by resignation"]

1. d4 {[%clk 0:03:00.9]} 1... d5 {[%clk 0:02:54]} 2. c4 {[%clk 0:03:00.7]} 2...
e6 {[%clk 0:02:52.6]} 3. Nf3 {[%clk 0:03:00.5]} 3... Nf6 {[%clk 0:02:52.1]} 4.
g3 {[%clk 0:03:00.8]} 4... Be7 {[%clk 0:02:52.3]} 5. Bg2 {[%clk 0:03:00.1]} 5...
O-O {[%clk 0:02:52.7]} 6. O-O {[%clk 0:03:00.2]} 6... dxc4 {[%clk 0:02:52.8]} 7.
Qc2 {[%clk 0:02:59.3]} 7... a6 {[%clk 0:02:52.8]} 8. a4 {[%clk 0:02:58]} 8...
Bd7 {[%clk 0:02:52.5]} 9. Bg5 {[%clk 0:02:55.1]} 9... Bc6 {[%clk 0:02:52]} 10.
Na3 {[%clk 0:02:39]} 10... b5 {[%clk 0:02:40.1]} 11. e3 {[%clk 0:02:32]} 11...
Be4 {[%clk 0:02:30.9]} 12. Qc1 {[%clk 0:02:31.3]} 12... c6 {[%clk 0:02:25.7]}
13. Ne5 {[%clk 0:02:30.5]} 13... Bxg2 {[%clk 0:02:24.7]} 14. Kxg2 {[%clk
0:02:31.4]} 14... h6 {[%clk 0:02:04.5]} 15. Bxf6 {[%clk 0:02:29.1]} 15... Bxf6
{[%clk 0:02:05.4]} 16. Qc2 {[%clk 0:02:27.8]} 16... Bxe5 {[%clk 0:02:03.5]} 17.
dxe5 {[%clk 0:02:27.9]} 17... Qd5+ {[%clk 0:02:02.8]} 18. Kg1 {[%clk 0:02:28.4]}
18... Qxe5 {[%clk 0:02:02.7]} 19. Rad1 {[%clk 0:02:28.1]} 19... Ra7 {[%clk
0:01:56.2]} 20. Rd4 {[%clk 0:02:27.7]} 20... Rd7 {[%clk 0:01:53.2]} 21. Rfd1
{[%clk 0:02:27.6]} 21... Rd5 {[%clk 0:01:52]} 22. Nb1 {[%clk 0:02:26.3]} 22...
Rfd8 {[%clk 0:01:44.2]} 23. Nc3 {[%clk 0:02:26.1]} 23... Rxd4 {[%clk 0:01:42.6]}
24. Rxd4 {[%clk 0:02:26.1]} 24... Rxd4 {[%clk 0:01:42.8]} 25. exd4 {[%clk
0:02:27]} 25... Qxd4 {[%clk 0:01:43.1]} 26. b3 {[%clk 0:02:26.6]} 26... b4
{[%clk 0:01:32]} 27. Ne4 {[%clk 0:02:21.7]} 27... cxb3 {[%clk 0:01:26.4]} 28.
Qxb3 {[%clk 0:02:19.1]} 28... Qxe4 {[%clk 0:01:25.1]} 0-1

[Event "Early-Titled-Tuesday-Blitz-May-28-2024"]
[Site "Chess.com"]
[Date "2024.05.28"]
[Round "9"]
[White "MarkusRagger"]
[Black "vishwa_vijeta"]
[Result "1-0"]
[WhiteElo "2811"]
[BlackElo "2637"]
[TimeControl "180+1"]
[EndTime "9:43:40 PDT"]
[Termination "MarkusRagger won by resignation"]

1. d4 {[%clk 0:03:00.9]} 1... Nf6 {[%clk 0:02:59.1]} 2. c4 {[%clk 0:03:00.1]}
2... g6 {[%clk 0:02:59.2]} 3. Nc3 {[%clk 0:02:59.4]} 3... d5 {[%clk 0:02:58.4]}
4. cxd5 {[%clk 0:02:59.4]} 4... Nxd5 {[%clk 0:02:57.8]} 5. Bd2 {[%clk
0:02:58.4]} 5... Bg7 {[%clk 0:02:57.3]} 6. e4 {[%clk 0:02:58.2]} 6... Nxc3
{[%clk 0:02:51]} 7. Bxc3 {[%clk 0:02:59.1]} 7... O-O {[%clk 0:02:51.1]} 8. Qd2
{[%clk 0:02:55.1]} 8... c5 {[%clk 0:02:42.8]} 9. d5 {[%clk 0:02:54.5]} 9... e6
{[%clk 0:02:42.6]} 10. Bc4 {[%clk 0:02:52.3]} 10... exd5 {[%clk 0:02:38.4]} 11.
Bxd5 {[%clk 0:02:51.4]} 11... Nc6 {[%clk 0:02:25.1]} 12. h4 {[%clk 0:02:37.2]}
12... Be6 {[%clk 0:02:04.9]} 13. Bxg7 {[%clk 0:02:22.6]} 13... Kxg7 {[%clk
0:02:01.8]} 14. Ne2 {[%clk 0:02:22.1]} 14... Qf6 {[%clk 0:01:51.8]} 15. h5
{[%clk 0:02:16.2]} 15... Rad8 {[%clk 0:01:50.9]} 16. hxg6 {[%clk 0:02:09.8]}
16... Qxg6 {[%clk 0:01:12.4]} 17. Nf4 {[%clk 0:02:04.7]} 17... Qg4 {[%clk
0:01:12.2]} 18. Nh5+ {[%clk 0:01:58.9]} 18... Kh8 {[%clk 0:01:12.2]} 19. Nf6
{[%clk 0:01:49.4]} 1-0

[Event "Early-Titled-Tuesday-Blitz-May-28-2024"]
[Site "Chess.com"]
[Date "2024.05.28"]
[Round "9"]
[White "mishanick"]
[Black "Bob_2004"]
[Result "1-0"]
[WhiteElo "3036"]
[BlackElo "2543"]
[TimeControl "180+1"]
[EndTime "9:44:11 PDT"]
[Termination "mishanick won by resignation"]

1. d4 {[%clk 0:02:50.9]} 1... d5 {[%clk 0:03:00.2]} 2. c4 {[%clk 0:02:50.5]}
2... e6 {[%clk 0:03:00.9]} 3. Nc3 {[%clk 0:02:50.9]} 3... c6 {[%clk 0:03:01.5]}
4. e4 {[%clk 0:02:49]} 4... dxe4 {[%clk 0:03:02.4]} 5. Nxe4 {[%clk 0:02:49.2]}
5... Bb4+ {[%clk 0:03:03.1]} 6. Nc3 {[%clk 0:02:48.4]} 6... c5 {[%clk
0:03:03.5]} 7. Be3 {[%clk 0:02:45.2]} 7... Ne7 {[%clk 0:03:03.4]} 8. dxc5 {[%clk
0:02:44.5]} 8... Bxc3+ {[%clk 0:03:02.5]} 9. bxc3 {[%clk 0:02:44.4]} 9... Qa5
{[%clk 0:03:03.2]} 10. Qb3 {[%clk 0:02:42.4]} 10... Nbc6 {[%clk 0:03:01.6]} 11.
Bd3 {[%clk 0:02:40.1]} 11... Nf5 {[%clk 0:02:59.3]} 12. Bxf5 {[%clk 0:02:38.9]}
12... exf5 {[%clk 0:03:00.2]} 13. Nf3 {[%clk 0:02:39.3]} 13... O-O {[%clk
0:02:59.9]} 14. O-O {[%clk 0:02:39]} 14... Qc7 {[%clk 0:02:47.8]} 15. Rad1
{[%clk 0:02:36]} 15... f4 {[%clk 0:02:42.9]} 16. Bc1 {[%clk 0:02:36]} 16... Be6
{[%clk 0:02:41.3]} 17. Nd4 {[%clk 0:02:34.2]} 17... Ne5 {[%clk 0:02:32.4]} 18.
Nxe6 {[%clk 0:02:31.8]} 18... fxe6 {[%clk 0:02:32.3]} 19. Rfe1 {[%clk
0:02:31.7]} 19... Rad8 {[%clk 0:02:25.6]} 20. Rxd8 {[%clk 0:02:29.2]} 20... Rxd8
{[%clk 0:02:26.5]} 21. Bxf4 {[%clk 0:02:25.5]} 21... Nf3+ {[%clk 0:02:25.8]} 22.
gxf3 {[%clk 0:02:25.9]} 22... Qxf4 {[%clk 0:02:26.5]} 23. Qxb7 {[%clk
0:02:25.2]} 23... Rf8 {[%clk 0:01:52.8]} 24. Qe4 {[%clk 0:02:20.7]} 24... Qg5+
{[%clk 0:01:49.5]} 25. Kh1 {[%clk 0:02:19.4]} 25... Qxc5 {[%clk 0:01:45.1]} 26.
Qxe6+ {[%clk 0:02:18.4]} 26... Kh8 {[%clk 0:01:44.8]} 27. Qe7 {[%clk 0:02:17.5]}
27... Qf5 {[%clk 0:01:40.6]} 28. Qe4 {[%clk 0:02:04.4]} 28... Qc5 {[%clk
0:01:39.4]} 29. Qd4 {[%clk 0:02:02.4]} 29... Qf5 {[%clk 0:01:32.8]} 30. Qd5
{[%clk 0:01:58.8]} 30... Qc2 {[%clk 0:01:28.9]} 31. Qf7 {[%clk 0:01:56.7]} 31...
Rg8 {[%clk 0:01:25.1]} 32. Re8 {[%clk 0:01:54.1]} 32... Qc1+ {[%clk 0:01:25.5]}
33. Kg2 {[%clk 0:01:52.8]} 33... Qg5+ {[%clk 0:01:25.2]} 34. Kh3 {[%clk
0:01:52.4]} 1-0

[Event "Early-Titled-Tuesday-Blitz-May-28-2024"]
[Site "Chess.com"]
[Date "2024.05.28"]
[Round "9"]
[White "GlavkonVVS"]
[Black "ClauAmura"]
[Result "1-0"]
[WhiteElo "2572"]
[BlackElo "2405"]
[TimeControl "180+1"]
[EndTime "9:44:24 PDT"]
[Termination "GlavkonVVS won by checkmate"]

1. c4 {[%clk 0:03:00.9]} 1... e6 {[%clk 0:02:59.1]} 2. Nc3 {[%clk 0:03:00.8]}
2... d5 {[%clk 0:02:59.3]} 3. d4 {[%clk 0:03:01.2]} 3... Nf6 {[%clk 0:02:58.7]}
4. Nf3 {[%clk 0:03:01.1]} 4... Be7 {[%clk 0:02:58.1]} 5. Bg5 {[%clk 0:03:01.5]}
5... O-O {[%clk 0:02:57.2]} 6. e3 {[%clk 0:03:01.5]} 6... Nbd7 {[%clk
0:02:55.8]} 7. Qc2 {[%clk 0:02:59.5]} 7... c6 {[%clk 0:02:52]} 8. a3 {[%clk
0:02:53.6]} 8... a6 {[%clk 0:02:49.8]} 9. c5 {[%clk 0:02:49.8]} 9... h6 {[%clk
0:02:46]} 10. Bf4 {[%clk 0:02:46]} 10... Nh5 {[%clk 0:02:43.2]} 11. Bg3 {[%clk
0:02:43.8]} 11... f5 {[%clk 0:02:39.4]} 12. Bd3 {[%clk 0:02:33.3]} 12... Ndf6
{[%clk 0:02:39.3]} 13. Ne5 {[%clk 0:02:29.4]} 13... Qe8 {[%clk 0:02:33.8]} 14.
f3 {[%clk 0:02:20]} 14... Nxg3 {[%clk 0:02:32.9]} 15. hxg3 {[%clk 0:02:19.6]}
15... Nd7 {[%clk 0:02:33.6]} 16. f4 {[%clk 0:02:06.3]} 16... Nf6 {[%clk
0:02:25]} 17. O-O-O {[%clk 0:01:58.2]} 17... Bd7 {[%clk 0:02:23.7]} 18. g4
{[%clk 0:01:53.1]} 18... Ne4 {[%clk 0:02:19.3]} 19. gxf5 {[%clk 0:01:43]} 19...
exf5 {[%clk 0:02:17.3]} 20. g4 {[%clk 0:01:34.4]} 20... Nxc3 {[%clk 0:02:14.5]}
21. bxc3 {[%clk 0:01:33.7]} 21... b6 {[%clk 0:01:59.1]} 22. gxf5 {[%clk
0:01:24.8]} 22... bxc5 {[%clk 0:01:59.1]} 23. f6 {[%clk 0:01:18.9]} 23... Rxf6
{[%clk 0:01:58.8]} 24. Bh7+ {[%clk 0:01:14.9]} 24... Kh8 {[%clk 0:01:51.7]} 25.
Rdg1 {[%clk 0:01:05.6]} 25... cxd4 {[%clk 0:01:49.3]} 26. Ng6+ {[%clk
0:01:02.9]} 26... Kxh7 {[%clk 0:01:41.3]} 27. Nf8+ {[%clk 0:01:00.5]} 27... Kg8
{[%clk 0:01:36.8]} 28. Qh7+ {[%clk 0:00:59.4]} 28... Kxf8 {[%clk 0:01:35.9]} 29.
Qxg7# {[%clk 0:00:59.6]} 1-0

[Event "Early-Titled-Tuesday-Blitz-May-28-2024"]
[Site "Chess.com"]
[Date "2024.05.28"]
[Round "9"]
[White "Preobrazhenska_D2011"]
[Black "luggevoila"]
[Result "1-0"]
[WhiteElo "2521"]
[BlackElo "2347"]
[TimeControl "180+1"]
[EndTime "9:44:41 PDT"]
[Termination "Preobrazhenska_D2011 won by resignation"]

1. e4 {[%clk 0:02:56.6]} 1... d6 {[%clk 0:02:58.8]} 2. d4 {[%clk 0:02:56.1]}
2... g6 {[%clk 0:02:59.3]} 3. Nc3 {[%clk 0:02:54.1]} 3... Bg7 {[%clk 0:02:59.8]}
4. Nf3 {[%clk 0:02:54]} 4... a6 {[%clk 0:03:00.2]} 5. Bc4 {[%clk 0:02:52.9]}
5... b5 {[%clk 0:02:59.2]} 6. Bd5 {[%clk 0:02:50.5]} 6... c6 {[%clk 0:02:56.2]}
7. Bb3 {[%clk 0:02:50.8]} 7... Nf6 {[%clk 0:02:51.1]} 8. O-O {[%clk 0:02:48.5]}
8... O-O {[%clk 0:02:48]} 9. Re1 {[%clk 0:02:37]} 9... e5 {[%clk 0:02:14.4]} 10.
dxe5 {[%clk 0:02:03.1]} 10... dxe5 {[%clk 0:02:13.3]} 11. Qxd8 {[%clk
0:02:02.7]} 11... Rxd8 {[%clk 0:02:14.2]} 12. Nxe5 {[%clk 0:02:02.8]} 12... Ra7
{[%clk 0:02:10.8]} 13. Bg5 {[%clk 0:01:20.9]} 13... c5 {[%clk 0:02:01.5]} 14.
Nd5 {[%clk 0:01:07.6]} 14... Nxd5 {[%clk 0:01:50.3]} 15. Bxd8 {[%clk 0:00:48.4]}
15... Nf4 {[%clk 0:01:48.8]} 16. Bxf7+ {[%clk 0:00:38.6]} 16... Rxf7 {[%clk
0:01:46.2]} 17. Nxf7 {[%clk 0:00:39]} 17... Kxf7 {[%clk 0:01:46.2]} 18. Bc7
{[%clk 0:00:38.1]} 1-0

[Event "Early-Titled-Tuesday-Blitz-May-28-2024"]
[Site "Chess.com"]
[Date "2024.05.28"]
[Round "9"]
[White "emeli_chess"]
[Black "Yan_Dyomin2010"]
[Result "0-1"]
[WhiteElo "2432"]
[BlackElo "2592"]
[TimeControl "180+1"]
[EndTime "9:44:49 PDT"]
[Termination "Yan_Dyomin2010 won by resignation"]

1. d4 {[%clk 0:02:59.7]} 1... Nf6 {[%clk 0:02:58.7]} 2. c4 {[%clk 0:03:00]} 2...
g6 {[%clk 0:02:58.4]} 3. Nc3 {[%clk 0:03:00]} 3... d5 {[%clk 0:02:58.9]} 4. cxd5
{[%clk 0:02:59.1]} 4... Nxd5 {[%clk 0:02:59.8]} 5. e4 {[%clk 0:02:59.2]} 5...
Nxc3 {[%clk 0:03:00.1]} 6. bxc3 {[%clk 0:02:59.6]} 6... Bg7 {[%clk 0:03:00.7]}
7. Be3 {[%clk 0:02:58.4]} 7... c5 {[%clk 0:03:00.8]} 8. Qd2 {[%clk 0:02:58.5]}
8... Qa5 {[%clk 0:02:58]} 9. Nf3 {[%clk 0:02:55.1]} 9... Bg4 {[%clk 0:02:50.4]}
10. Ng5 {[%clk 0:02:45.5]} 10... h6 {[%clk 0:02:35.6]} 11. Nf3 {[%clk
0:02:42.4]} 11... Nc6 {[%clk 0:02:31.4]} 12. Rd1 {[%clk 0:02:28.4]} 12... Rd8
{[%clk 0:02:29.7]} 13. Be2 {[%clk 0:02:11.1]} 13... Bxf3 {[%clk 0:02:27.5]} 14.
gxf3 {[%clk 0:02:07.5]} 14... cxd4 {[%clk 0:02:27]} 15. cxd4 {[%clk 0:02:07.5]}
15... Qxd2+ {[%clk 0:02:27.9]} 16. Rxd2 {[%clk 0:02:06.4]} 16... Bxd4 {[%clk
0:02:25.6]} 17. Bb5 {[%clk 0:02:01.4]} 17... Bxe3 {[%clk 0:02:25.3]} 18. fxe3
{[%clk 0:01:33.9]} 18... Rxd2 {[%clk 0:02:24.3]} 19. Kxd2 {[%clk 0:01:33.6]}
19... Kd7 {[%clk 0:02:25.2]} 20. Kc3 {[%clk 0:01:29.4]} 20... Kc7 {[%clk
0:02:24.1]} 21. Rd1 {[%clk 0:01:24.6]} 21... Rd8 {[%clk 0:02:23.1]} 22. Rxd8
{[%clk 0:01:19.1]} 22... Nxd8 {[%clk 0:02:24]} 23. Be8 {[%clk 0:01:12.8]} 23...
Kd6 {[%clk 0:02:20.9]} 24. f4 {[%clk 0:01:08.7]} 24... e5 {[%clk 0:02:20.5]} 25.
Kd3 {[%clk 0:00:46.1]} 25... g5 {[%clk 0:02:15.1]} 26. Ba4 {[%clk 0:00:29.8]}
26... gxf4 {[%clk 0:02:09.7]} 27. exf4 {[%clk 0:00:29.3]} 27... exf4 {[%clk
0:02:10.6]} 28. Kd4 {[%clk 0:00:27.1]} 28... f6 {[%clk 0:02:09.4]} 29. Bd1
{[%clk 0:00:25.1]} 29... Ne6+ {[%clk 0:02:09.4]} 30. Kc4 {[%clk 0:00:23.3]}
30... Ke5 {[%clk 0:02:10.3]} 31. Bc2 {[%clk 0:00:22.5]} 31... Ng5 {[%clk
0:02:10.5]} 0-1

[Event "Early-Titled-Tuesday-Blitz-May-28-2024"]
[Site "Chess.com"]
[Date "2024.05.28"]
[Round "9"]
[White "lefonghua"]
[Black "HouseOfDurin"]
[Result "1-0"]
[WhiteElo "2548"]
[BlackElo "2272"]
[TimeControl "180+1"]
[EndTime "9:44:59 PDT"]
[Termination "lefonghua won by checkmate"]

1. d4 {[%clk 0:03:00.9]} 1... Nf6 {[%clk 0:02:58.9]} 2. c4 {[%clk 0:03:01]} 2...
c5 {[%clk 0:02:59.2]} 3. d5 {[%clk 0:03:01]} 3... b5 {[%clk 0:02:59.9]} 4. cxb5
{[%clk 0:03:01.6]} 4... a6 {[%clk 0:03:00.3]} 5. b6 {[%clk 0:03:02.3]} 5... d6
{[%clk 0:03:00.1]} 6. Nc3 {[%clk 0:03:02.6]} 6... Nbd7 {[%clk 0:03:00.3]} 7. a4
{[%clk 0:03:02.9]} 7... Qxb6 {[%clk 0:02:58.9]} 8. a5 {[%clk 0:03:03.4]} 8...
Qc7 {[%clk 0:02:56.4]} 9. e4 {[%clk 0:03:03.3]} 9... g6 {[%clk 0:02:56.2]} 10.
f4 {[%clk 0:03:03.6]} 10... Bg7 {[%clk 0:02:56]} 11. Bc4 {[%clk 0:03:03.9]}
11... O-O {[%clk 0:02:55.5]} 12. Nf3 {[%clk 0:03:03.3]} 12... Rb8 {[%clk
0:02:43.4]} 13. Qd3 {[%clk 0:03:00.8]} 13... Rb4 {[%clk 0:02:19.2]} 14. O-O
{[%clk 0:02:57.5]} 14... Re8 {[%clk 0:02:03.8]} 15. Ra2 {[%clk 0:02:53.7]} 15...
Qb8 {[%clk 0:01:46.9]} 16. b3 {[%clk 0:02:51.8]} 16... e6 {[%clk 0:01:03.1]} 17.
dxe6 {[%clk 0:02:42.6]} 17... fxe6 {[%clk 0:01:04]} 18. Bd2 {[%clk 0:02:41.4]}
18... d5 {[%clk 0:00:39.4]} 19. exd5 {[%clk 0:02:36.3]} 19... exd5 {[%clk
0:00:38.3]} 20. Nxd5 {[%clk 0:02:35.8]} 20... Rxc4 {[%clk 0:00:24.9]} 21. Qxc4
{[%clk 0:02:31.4]} 21... Kh8 {[%clk 0:00:19.9]} 22. Ng5 {[%clk 0:02:26.2]} 22...
h6 {[%clk 0:00:19.6]} 23. Nxf6 {[%clk 0:02:18.8]} 23... Nxf6 {[%clk 0:00:20.5]}
24. Nf7+ {[%clk 0:02:18.1]} 24... Kh7 {[%clk 0:00:20.8]} 25. Ne5 {[%clk
0:02:18.1]} 25... Be6 {[%clk 0:00:19.8]} 26. Qd3 {[%clk 0:02:14.2]} 26... Qxb3
{[%clk 0:00:19.1]} 27. Qxg6+ {[%clk 0:02:08.9]} 27... Kh8 {[%clk 0:00:19]} 28.
Raa1 {[%clk 0:02:03]} 28... Rd8 {[%clk 0:00:11]} 29. f5 {[%clk 0:01:57.3]} 29...
Bg8 {[%clk 0:00:09.9]} 30. Bxh6 {[%clk 0:01:55.6]} 30... Bxh6 {[%clk 0:00:07.7]}
31. Qxh6+ {[%clk 0:01:56.2]} 31... Nh7 {[%clk 0:00:07.6]} 32. Ng6# {[%clk
0:01:56]} 1-0

[Event "Early-Titled-Tuesday-Blitz-May-28-2024"]
[Site "Chess.com"]
[Date "2024.05.28"]
[Round "9"]
[White "KorolDimitriy75"]
[Black "Connectedcloud"]
[Result "1-0"]
[WhiteElo "2378"]
[BlackElo "2206"]
[TimeControl "180+1"]
[EndTime "9:45:01 PDT"]
[Termination "KorolDimitriy75 won by resignation"]

1. d4 {[%clk 0:03:00.9]} 1... Nf6 {[%clk 0:02:59.5]} 2. c4 {[%clk 0:03:00.5]}
2... e6 {[%clk 0:02:59.1]} 3. Nc3 {[%clk 0:03:00.5]} 3... Bb4 {[%clk 0:02:59.1]}
4. Qc2 {[%clk 0:03:00.7]} 4... O-O {[%clk 0:02:58.8]} 5. e4 {[%clk 0:03:00.4]}
5... d5 {[%clk 0:02:55]} 6. cxd5 {[%clk 0:03:01.3]} 6... exd5 {[%clk 0:02:54.4]}
7. e5 {[%clk 0:03:01.9]} 7... Ne4 {[%clk 0:02:54.4]} 8. Bd3 {[%clk 0:03:02.5]}
8... c5 {[%clk 0:02:54.6]} 9. Ne2 {[%clk 0:03:02.9]} 9... Nc6 {[%clk 0:02:54.4]}
10. O-O {[%clk 0:03:02.6]} 10... Bxc3 {[%clk 0:02:30.9]} 11. bxc3 {[%clk
0:03:02.1]} 11... Bf5 {[%clk 0:02:31.3]} 12. f3 {[%clk 0:02:46.6]} 12... c4
{[%clk 0:02:31.4]} 13. Bxe4 {[%clk 0:02:36.4]} 13... dxe4 {[%clk 0:02:31.3]} 14.
fxe4 {[%clk 0:02:37.3]} 14... Bg6 {[%clk 0:02:32]} 15. Ba3 {[%clk 0:02:13.3]}
15... Re8 {[%clk 0:02:30.7]} 16. Nf4 {[%clk 0:01:57.5]} 16... Qg5 {[%clk
0:02:23.2]} 17. Nxg6 {[%clk 0:01:47.9]} 17... hxg6 {[%clk 0:02:23.3]} 18. Rf3
{[%clk 0:01:44.8]} 18... Rad8 {[%clk 0:02:20.2]} 19. Raf1 {[%clk 0:01:34.3]}
19... Rd7 {[%clk 0:01:57.8]} 20. Qf2 {[%clk 0:00:53.5]} 20... Nxe5 {[%clk
0:01:28.1]} 21. dxe5 {[%clk 0:00:51.4]} 21... Rd2 {[%clk 0:01:28.5]} 22. Qg3
{[%clk 0:00:43.8]} 22... Qxg3 {[%clk 0:01:27.6]} 23. hxg3 {[%clk 0:00:35.9]}
23... Rxa2 {[%clk 0:01:27.6]} 24. Bd6 {[%clk 0:00:32.5]} 24... f5 {[%clk
0:01:20.9]} 25. exf5 {[%clk 0:00:30]} 1-0

[Event "Early-Titled-Tuesday-Blitz-May-28-2024"]
[Site "Chess.com"]
[Date "2024.05.28"]
[Round "9"]
[White "Rsnr"]
[Black "Matsanovic"]
[Result "1-0"]
[WhiteElo "2892"]
[BlackElo "2623"]
[TimeControl "180+1"]
[EndTime "9:45:11 PDT"]
[Termination "Rsnr won by resignation"]

1. Nf3 {[%clk 0:03:00.9]} 1... d5 {[%clk 0:02:57.9]} 2. e3 {[%clk 0:02:59.3]}
2... Nf6 {[%clk 0:02:57]} 3. c4 {[%clk 0:02:59.8]} 3... c6 {[%clk 0:02:53.7]} 4.
b3 {[%clk 0:02:53.4]} 4... Bf5 {[%clk 0:02:52]} 5. Bb2 {[%clk 0:02:53.2]} 5...
e6 {[%clk 0:02:52.2]} 6. Nc3 {[%clk 0:02:50.2]} 6... h6 {[%clk 0:02:52]} 7. Be2
{[%clk 0:02:45.1]} 7... Nbd7 {[%clk 0:02:51.8]} 8. O-O {[%clk 0:02:45.1]} 8...
Bd6 {[%clk 0:02:51.4]} 9. d4 {[%clk 0:02:42.4]} 9... O-O {[%clk 0:02:49.9]} 10.
h3 {[%clk 0:02:37.7]} 10... Qe7 {[%clk 0:02:42.2]} 11. Bd3 {[%clk 0:02:35.9]}
11... Bxd3 {[%clk 0:02:32.9]} 12. Qxd3 {[%clk 0:02:36.8]} 12... Ba3 {[%clk
0:02:22.1]} 13. Bxa3 {[%clk 0:02:35.6]} 13... Qxa3 {[%clk 0:02:22.1]} 14. e4
{[%clk 0:02:36]} 14... dxe4 {[%clk 0:02:20.9]} 15. Nxe4 {[%clk 0:02:36.9]} 15...
Nxe4 {[%clk 0:02:20.9]} 16. Qxe4 {[%clk 0:02:37.8]} 16... Nf6 {[%clk 0:02:18.9]}
17. Qe2 {[%clk 0:02:31.5]} 17... Rfd8 {[%clk 0:02:16.7]} 18. Rfd1 {[%clk
0:02:31.2]} 18... Rd6 {[%clk 0:02:12.9]} 19. Rd3 {[%clk 0:02:31.4]} 19... Rad8
{[%clk 0:02:10.5]} 20. Rad1 {[%clk 0:02:31.6]} 20... Qb4 {[%clk 0:02:01.6]} 21.
Ne5 {[%clk 0:02:29]} 21... a5 {[%clk 0:01:49.3]} 22. Qc2 {[%clk 0:02:28.9]}
22... Nd7 {[%clk 0:01:38]} 23. a3 {[%clk 0:01:45.3]} 23... Qxa3 {[%clk 0:01:21]}
24. Nxf7 {[%clk 0:01:29.7]} 24... Kxf7 {[%clk 0:01:17.8]} 25. b4 {[%clk
0:01:30.2]} 25... Qxb4 {[%clk 0:01:03.2]} 26. Rb1 {[%clk 0:01:30.4]} 26... Rxd4
{[%clk 0:00:52.8]} 27. Rxd4 {[%clk 0:01:17.5]} 27... Qc5 {[%clk 0:00:43.8]} 28.
Rf4+ {[%clk 0:01:17.5]} 28... Nf6 {[%clk 0:00:42.5]} 29. Rxb7+ {[%clk
0:01:17.6]} 29... Kg8 {[%clk 0:00:41.6]} 30. Rxf6 {[%clk 0:01:08.3]} 1-0

[Event "Early-Titled-Tuesday-Blitz-May-28-2024"]
[Site "Chess.com"]
[Date "2024.05.28"]
[Round "9"]
[White "rionelG"]
[Black "Eloist"]
[Result "0-1"]
[WhiteElo "2304"]
[BlackElo "2439"]
[TimeControl "180+1"]
[EndTime "9:45:20 PDT"]
[Termination "Eloist won on time"]

1. e4 {[%clk 0:01:46.7]} 1... e6 {[%clk 0:02:55.9]} 2. d3 {[%clk 0:01:45.9]}
2... d5 {[%clk 0:02:55.9]} 3. Nd2 {[%clk 0:01:46.6]} 3... Nf6 {[%clk 0:02:55.8]}
4. g3 {[%clk 0:01:46.9]} 4... dxe4 {[%clk 0:02:49.5]} 5. dxe4 {[%clk 0:01:46.4]}
5... b6 {[%clk 0:02:49]} 6. Bg2 {[%clk 0:01:46.6]} 6... e5 {[%clk 0:02:45.6]} 7.
Ngf3 {[%clk 0:01:45.7]} 7... Nbd7 {[%clk 0:02:41.1]} 8. O-O {[%clk 0:01:41]}
8... Bc5 {[%clk 0:02:37.8]} 9. h3 {[%clk 0:01:12.8]} 9... O-O {[%clk 0:02:29.7]}
10. c3 {[%clk 0:01:12.4]} 10... a5 {[%clk 0:02:28.7]} 11. a4 {[%clk 0:01:10.8]}
11... Ba6 {[%clk 0:02:28]} 12. Re1 {[%clk 0:01:09.9]} 12... Qe7 {[%clk
0:02:26.7]} 13. Qc2 {[%clk 0:01:08.7]} 13... Rfd8 {[%clk 0:02:23.5]} 14. Nf1
{[%clk 0:01:08.4]} 14... Bd6 {[%clk 0:02:11.6]} 15. Ne3 {[%clk 0:01:05.3]} 15...
Nc5 {[%clk 0:02:11.4]} 16. Nf5 {[%clk 0:01:04.6]} 16... Qe6 {[%clk 0:02:05.4]}
17. Ng5 {[%clk 0:00:54.1]} 17... Qb3 {[%clk 0:02:01.9]} 18. Qxb3 {[%clk
0:00:40.7]} 18... Nxb3 {[%clk 0:02:01.5]} 19. Rb1 {[%clk 0:00:40.8]} 19... Bd3
{[%clk 0:01:59.6]} 20. Be3 {[%clk 0:00:32.4]} 20... Bxb1 {[%clk 0:01:58.2]} 21.
Rxb1 {[%clk 0:00:33.3]} 21... Bc5 {[%clk 0:01:45.1]} 22. Bf1 {[%clk 0:00:28.7]}
22... Bxe3 {[%clk 0:01:37.9]} 23. Nxe3 {[%clk 0:00:17.3]} 23... Nd2 {[%clk
0:01:37.2]} 24. Rc1 {[%clk 0:00:15.9]} 24... h6 {[%clk 0:01:33.9]} 25. Nf3
{[%clk 0:00:14.9]} 25... Nxf3+ {[%clk 0:01:33.3]} 0-1

[Event "Early-Titled-Tuesday-Blitz-May-28-2024"]
[Site "Chess.com"]
[Date "2024.05.28"]
[Round "9"]
[White "platy3"]
[Black "AryanTari"]
[Result "1-0"]
[WhiteElo "2893"]
[BlackElo "3032"]
[TimeControl "180+1"]
[EndTime "9:45:27 PDT"]
[Termination "platy3 won by resignation"]

1. e4 {[%clk 0:03:00.9]} 1... e5 {[%clk 0:02:59.8]} 2. Nf3 {[%clk 0:03:00]} 2...
Nc6 {[%clk 0:03:00]} 3. Bc4 {[%clk 0:03:00.6]} 3... Nf6 {[%clk 0:03:00]} 4. d3
{[%clk 0:03:00.2]} 4... Bc5 {[%clk 0:02:59.8]} 5. O-O {[%clk 0:02:59.7]} 5... d6
{[%clk 0:02:59.8]} 6. c3 {[%clk 0:03:00]} 6... a5 {[%clk 0:02:59.4]} 7. h3
{[%clk 0:03:00.3]} 7... O-O {[%clk 0:02:56.9]} 8. Be3 {[%clk 0:03:00.3]} 8...
Bxe3 {[%clk 0:02:48.5]} 9. fxe3 {[%clk 0:03:01.2]} 9... h6 {[%clk 0:02:46]} 10.
Nbd2 {[%clk 0:03:01]} 10... Be6 {[%clk 0:02:45.6]} 11. Bxe6 {[%clk 0:03:00.6]}
11... fxe6 {[%clk 0:02:46.5]} 12. Qb3 {[%clk 0:03:00.5]} 12... Qd7 {[%clk
0:02:43.3]} 13. a4 {[%clk 0:03:00.5]} 13... b6 {[%clk 0:02:34.3]} 14. Rf2 {[%clk
0:03:00.5]} 14... d5 {[%clk 0:02:32.6]} 15. Raf1 {[%clk 0:02:56.5]} 15... Qd6
{[%clk 0:02:27.5]} 16. g4 {[%clk 0:02:54.9]} 16... Nd7 {[%clk 0:02:26.9]} 17. d4
{[%clk 0:02:50.3]} 17... Kh8 {[%clk 0:02:16.2]} 18. Rg2 {[%clk 0:02:38.3]} 18...
exd4 {[%clk 0:02:10.1]} 19. exd4 {[%clk 0:02:36.8]} 19... Rf4 {[%clk 0:02:01.5]}
20. e5 {[%clk 0:02:15.6]} 20... Qe7 {[%clk 0:02:01.5]} 21. Qb5 {[%clk
0:02:15.6]} 21... Nd8 {[%clk 0:01:36.5]} 22. Nh4 {[%clk 0:02:02.7]} 22... Rxf1+
{[%clk 0:01:31]} 23. Nxf1 {[%clk 0:02:03.6]} 23... Kg8 {[%clk 0:01:00.8]} 24.
Ng6 {[%clk 0:01:58.8]} 24... Qe8 {[%clk 0:01:00.5]} 25. Rf2 {[%clk 0:01:51.6]}
25... c5 {[%clk 0:00:52.2]} 26. Rf8+ {[%clk 0:01:46.9]} 26... Qxf8 {[%clk
0:00:29]} 27. Nxf8 {[%clk 0:01:46.6]} 27... Nxf8 {[%clk 0:00:29.5]} 28. dxc5
{[%clk 0:01:42.4]} 28... bxc5 {[%clk 0:00:29]} 29. Ne3 {[%clk 0:01:36.2]} 29...
Nf7 {[%clk 0:00:28.6]} 30. Qxc5 {[%clk 0:01:31.9]} 30... Nxe5 {[%clk 0:00:27.3]}
31. Nxd5 {[%clk 0:01:23]} 31... Nfd7 {[%clk 0:00:16.9]} 32. Qd6 {[%clk
0:01:22.1]} 1-0